bitfinex-derivatives/quotes_ETHF0:USTF0_20260119
["timestamp","ask_amount","ask_price","bid_price","bid_amount"]
[1768797616644,2.25198313,3214.7,3213.8,0.00340434]
[1768797620559,0.00467064,3214.6,3213.8,0.00340434]
[1768797622760,0.00467064,3214.6,3213.8,1.55353488]
[1768797624763,0.00467064,3214.6,3213.8,0.00340434]
[1768797636179,0.00467064,3214.6,3213.9,0.00467064]
[1768797637879,2.27778666,3214.6,3213.9,0.00467064]
[1768797638077,2.27778666,3214.6,3213.8,0.00340434]
[1768797639084,3.8279172,3214.6,3213.8,0.00340434]
[1768797639378,2.17085454,3214.5,3213.8,0.00340434]
[1768797639577,2.17085454,3214.5,3213.0,1.55013054]
[1768797639775,1.55013054,3214.4,3213.0,3.31513054]
[1768797639978,2.17085454,3214.3,3213.0,3.31513054]
[1768797640485,2.17085454,3214.3,3213.0,3.31895767]
[1768797641382,3.72098508,3213.9,3213.0,0.00382713]
[1768797641785,2.17085454,3213.9,3213.0,0.00382713]
[1768797642279,2.17085454,3213.8,3212.4,1.55013054]
[1768797642483,2.17085454,3213.8,3212.6,1.765]
[1768797642686,2.17085454,3213.8,3212.6,3.31513054]
[1768797643287,2.17085454,3213.8,3212.8,1.55013054]
[1768797645881,2.17085454,3213.8,3212.6,3.31767939]
[1768797647483,2.17085454,3213.8,3212.6,1.76754885]
[1768797648091,2.17085454,3213.8,3212.7,1.55013054]
[1768797648886,2.17085454,3214.2,3213.5,1.55013054]
[1768797649287,2.17085454,3214.2,3213.3,1.55013054]
[1768797649884,2.17085454,3214.2,3212.9,1.55013054]
[1768797650087,2.17085454,3214.2,3212.9,3.31513054]
[1768797652394,2.17085454,3214.0,3212.8,1.765]
[1768797652888,2.17085454,3214.0,3212.6,0.00254885]
[1768797653083,2.17085454,3214.0,3212.8,1.55013054]
[1768797653891,2.17085454,3214.0,3212.7,1.765]
[1768797655397,2.17085454,3214.0,3212.6,0.00254885]
[1768797657800,2.17085454,3214.0,3212.7,1.55077217]
[1768797657999,2.17085454,3214.0,3212.6,0.00254885]
[1768797666800,0.15566,3213.8,3211.5,5.5539521]
[1768797667005,2.19893055,3212.9,3211.3,1.55077217]
[1768797667198,1.11975406,3213.8,3211.7,1.55077217]
[1768797667504,2.19893055,3213.6,3211.7,1.55077217]
[1768797667705,2.19893055,3213.4,3211.4,2.17007607]
[1768797668007,2.20163484,3213.4,3211.6,3.72084824]
[1768797669997,2.20163484,3213.4,3212.0,1.55077217]
[1768797672496,0.00270429,3213.4,3212.0,3.72084824]
[1768797672697,0.00270429,3213.4,3212.4,1.55077217]
[1768797672893,0.00270429,3213.4,3212.5,1.765]
[1768797673098,0.00270429,3213.4,3212.3,1.55077217]
[1768797673305,0.00270429,3213.4,3212.4,1.765]
[1768797688530,0.00467064,3213.2,3212.4,1.765]
[1768797688730,42.62556801,3214.6,3212.4,1.765]
[1768797688731,1.66994801,3215.4,3213.4,0.15568]
[1768797688925,2.17336444,3215.4,3213.6,1.55077217]
[1768797689831,2.17659523,3215.4,3213.6,1.55077217]
[1768797690425,2.17659523,3215.4,3213.7,1.764]
[1768797690624,2.17659523,3215.4,3213.7,1.76687211]
[1768797691236,2.17659523,3215.4,3214.2,0.00467064]
[1768797705449,2.13368384,3216.0,3214.9,1.55077217]
[1768797706151,2.13368384,3216.0,3214.2,2.06719707]
[1768797706353,2.13368384,3216.0,3214.6,1.55077217]
[1768797706651,2.13643273,3216.0,3214.6,1.55077217]
[1768797712950,2.13643273,3216.0,3214.3,1.55077217]
[1768797716960,2.13643273,3216.0,3214.7,1.54888032]
[1768797717857,2.13643273,3216.0,3214.2,0.00467064]
[1768797718158,2.13643273,3216.0,3214.7,1.54888032]
[1768797719855,1.9894815,3215.8,3214.2,0.00467064]
[1768797720161,1.9894815,3215.6,3214.3,1.54888032]
[1768797720658,1.9894815,3215.6,3214.7,1.54888032]
[1768797722862,1.9894815,3215.6,3214.2,0.00467064]
[1768797723058,1.9894815,3215.6,3214.6,1.54888032]
[1768797723259,1.9894815,3215.6,3214.2,0.00467064]
[1768797723562,1.9894815,3215.6,3214.6,1.54888032]
[1768797726266,1.9894815,3215.6,3214.2,0.00467064]
[1768797726468,1.9894815,3215.6,3214.6,1.54888032]
[1768797727259,1.9894815,3215.6,3214.5,1.54888032]
[1768797727461,1.9894815,3215.3,3214.2,0.00467064]
[1768797727662,1.9894815,3215.0,3214.2,0.00467064]
[1768797731165,1.9894815,3215.0,3213.8,1.54888032]
[1768797731363,1.9894815,3215.0,3213.9,1.54888032]
[1768797731771,1.9894815,3215.0,3214.1,1.54888032]
[1768797732556,1.9894815,3215.0,3214.3,1.54888032]
[1768797732760,1.9894815,3215.4,3214.3,1.54888032]
[1768797733558,1.9894815,3215.4,3214.5,1.54888032]
[1768797733959,1.9894815,3215.4,3214.4,1.54888032]
[1768797737872,1.9894815,3215.4,3213.7,1.76687211]
[1768797738274,1.9894815,3215.4,3214.2,1.54888032]
[1768797740870,1.9894815,3215.4,3213.7,1.76687211]
[1768797741078,1.9894815,3215.4,3214.1,1.54888032]
[1768797742983,1.9894815,3215.4,3213.7,1.76687211]
[1768797743278,1.9894815,3215.4,3214.2,1.54888032]
[1768797752690,1.9894815,3215.4,3214.4,1.54888032]
[1768797752885,1.9894815,3215.4,3213.7,3.83091849]
[1768797753191,1.9894815,3215.4,3214.2,1.54888032]
[1768797757805,2.11145792,3215.0,3213.7,1.76687211]
[1768797758001,2.11145792,3215.0,3213.7,3.31575243]
[1768797762610,2.11145792,3215.0,3213.9,1.54888032]
[1768797767716,3.87412308,3215.4,3214.1,1.54888032]
[1768797767912,3.28939061,3215.3,3214.0,1.54888032]
[1768797768114,2.32524276,3215.3,3214.0,1.54888032]
[1768797770210,2.32524276,3215.3,3214.4,1.54888032]
[1768797771917,2.32524276,3215.3,3214.2,1.54888032]
[1768797772916,2.37492298,3215.2,3213.9,1.54888032]
[1768797775517,2.37492298,3215.2,3214.1,1.54888032]
[1768797776927,2.37492298,3215.2,3213.7,4.14029009]
[1768797782028,2.37492298,3215.2,3213.7,1.76687211]
[1768797787635,2.37492298,3215.2,3213.8,2.31992904]
[1768797788033,2.37492298,3215.7,3213.8,2.31992904]
[1768797788334,2.37492298,3215.5,3213.8,2.31992904]
[1768797788535,0.96490148,3215.4,3213.8,2.31992904]
[1768797788740,2.37492298,3215.5,3213.8,2.31992904]
[1768797788936,0.96488531,3215.4,3213.8,2.31992904]
[1768797789126,2.37492298,3215.5,3213.8,2.31992904]
[1768797789323,0.96486391,3215.4,3213.8,2.31992904]
[1768797789535,2.37492298,3215.5,3213.8,2.31992904]
[1768797789735,0.96487863,3215.4,3213.8,2.31992904]
[1768797789936,2.37492298,3215.5,3213.8,2.31992904]
[1768797790138,0.96487876,3215.4,3213.8,2.31992904]
[1768797790332,2.37492298,3215.5,3213.8,2.31992904]
[1768797790533,0.96487843,3215.4,3213.8,2.31992904]
[1768797790826,2.37492298,3215.5,3213.8,2.31992904]
[1768797791031,0.96487843,3215.4,3213.8,2.31992904]
[1768797791340,2.37492298,3215.5,3213.8,2.31992904]
[1768797791542,0.96488774,3215.4,3213.8,2.31992904]
[1768797791740,2.37492298,3215.5,3213.8,2.31992904]
[1768797791941,0.96488683,3215.4,3213.8,2.31992904]
[1768797792138,2.37492298,3215.5,3213.8,2.31992904]
[1768797792337,0.96489804,3215.4,3213.8,2.31992904]
[1768797792643,2.37492298,3215.5,3213.8,2.31992904]
[1768797792842,0.96489677,3215.4,3213.8,2.31992904]
[1768797793038,2.37492298,3215.5,3213.8,3.86933807]
[1768797793341,0.96490575,3215.4,3213.8,3.86933807]
[1768797793538,2.37492298,3215.5,3213.8,3.86933807]
[1768797793738,0.96493328,3215.4,3213.8,3.86933807]
[1768797794038,2.37492298,3215.5,3213.8,3.86933807]
[1768797794233,0.96493312,3215.4,3213.8,3.86933807]
[1768797794433,2.37492298,3215.5,3213.8,3.86933807]
[1768797794634,0.96497875,3215.4,3213.8,3.86933807]
[1768797794838,2.37492298,3215.5,3213.8,3.86933807]
[1768797795142,0.964968,3215.4,3213.8,3.86933807]
[1768797795335,2.37492298,3215.5,3213.8,3.86933807]
[1768797795531,0.96502776,3215.4,3213.8,3.86933807]
[1768797795732,2.37492298,3215.5,3213.8,1.54940903]
[1768797795940,2.37492298,3215.3,3213.7,1.76687211]
[1768797796137,2.37492298,3215.3,3213.7,3.31628114]
[1768797797641,2.37492298,3215.3,3213.7,5.63621018]
[1768797799144,2.37492298,3215.3,3213.7,3.31628114]
[1768797800541,2.37492298,3215.3,3213.7,1.55228114]
[1768797800745,2.37492298,3215.1,3213.7,0.00287211]
[1768797801045,2.37492298,3214.9,3213.7,0.00287211]
[1768797808849,2.26601604,3215.6,3213.7,1.55228114]
[1768797809050,2.26601604,3215.4,3213.7,1.55228114]
[1768797809256,1.11540294,3215.7,3213.7,1.55228114]
[1768797809257,2.26601604,3215.2,3213.7,1.55228114]
[1768797809553,2.26601604,3215.2,3213.7,0.00287211]
[1768797811151,2.26601604,3215.2,3213.8,1.54940903]
[1768797812946,2.26601604,3215.2,3213.7,0.00287211]
[1768797813147,2.26601604,3215.2,3213.8,1.54940903]
[1768797827860,2.26601604,3215.2,3213.7,0.00287211]
[1768797828967,2.2791273,3214.8,3213.7,0.00287211]
[1768797838893,2.2791273,3214.8,3214.0,1.54950721]
[1768797839794,2.2791273,3214.8,3213.9,1.54950721]
[1768797840986,2.2791273,3214.8,3213.7,0.00287211]
[1768797847394,2.2791273,3214.8,3213.7,1.55237932]
[1768797852803,2.2791273,3214.8,3213.9,1.54950721]
[1768797857997,2.2791273,3214.8,3214.0,1.54950721]
[1768797862906,2.2791273,3214.8,3213.7,0.00287211]
[1768797863097,2.2791273,3214.8,3213.9,1.54950721]
[1768797867509,2.2791273,3214.8,3213.7,0.00287211]
[1768797867707,2.2791273,3214.8,3213.9,1.54950721]
[1768797868312,2.2791273,3214.8,3213.7,0.00287211]
[1768797868497,2.2791273,3214.8,3213.9,1.54950721]
[1768797874217,2.2791273,3214.8,3213.7,0.00287211]
[1768797874416,2.2791273,3214.8,3214.0,1.54950721]
[1768797880216,2.2791273,3214.8,3214.0,1.39478016]
[1768797880425,2.2791273,3214.8,3213.8,1.54950721]
[1768797882614,2.2791273,3214.8,3213.7,0.00287211]
[1768797882615,0.00467064,3214.8,3214.2,1.54950721]
[1768797882817,0.00467064,3214.8,3213.7,0.00287211]
[1768797883021,0.00467064,3214.8,3214.0,1.54950721]
[1768797884320,2.29516737,3214.8,3213.7,0.00287211]
[1768797884626,2.29049673,3214.6,3213.7,0.00287211]
[1768797884813,3.25693919,3214.5,3213.7,0.00287211]
[1768797885016,2.29049673,3214.5,3213.9,0.00467064]
[1768797887526,2.29049673,3214.5,3213.1,0.1]
[1768797887726,2.29049673,3214.5,3213.2,1.54950721]
[1768797888030,2.29049673,3214.5,3213.3,1.54950721]
[1768797888534,2.29049673,3214.5,3213.3,1.55249016]
[1768797892924,2.29049673,3214.5,3213.3,0.00298295]
[1768797896432,2.29049673,3214.5,3213.4,1.54950721]
[1768797897526,2.29049673,3214.5,3213.3,0.00298295]
[1768797897734,0.00467064,3214.8,3213.9,1.54950721]
[1768797898029,0.00467064,3214.8,3213.7,1.54950721]
[1768797898330,2.48022588,3214.8,3213.7,1.54950721]
[1768797898729,0.00467064,3214.8,3213.7,3.83533845]
[1768797898927,2.47830413,3216.0,3214.2,2.28583124]
[1768797899128,2.47830413,3216.0,3214.2,1.761]
[1768797899935,2.47555524,3215.8,3214.2,1.761]
[1768797900328,2.47555524,3215.8,3213.9,3.112]
[1768797901030,0.9636875,3215.7,3213.9,3.112]
[1768797901231,2.47555524,3215.6,3213.9,3.112]
[1768797904744,0.00467064,3215.1,3213.9,3.112]
[1768797905537,0.00467064,3215.1,3213.6,1.91667]
[1768797907936,2.48022588,3215.1,3213.6,1.91667]
[1768797909233,2.48022588,3215.1,3213.6,4.20250124]
[1768797910340,2.48022588,3215.1,3213.6,4.04683124]
[1768797912442,2.48022588,3215.1,3213.7,2.28583124]
[1768797912639,0.00467064,3215.1,3213.8,3.83434304]
[1768797912843,0.00467064,3215.1,3213.9,2.28583124]
[1768797917742,0.00467064,3215.1,3214.1,1.5485118]
[1768797917948,0.00467064,3215.1,3214.1,3.83434304]
[1768797918850,0.00467064,3215.1,3214.2,2.28583124]
[1768797920953,2.47555524,3215.9,3214.5,3.83434304]
[1768797921250,2.47555524,3215.9,3214.5,2.28583124]
[1768797923146,2.47555524,3215.9,3214.3,0.00467064]
[1768797928250,0.00274889,3216.0,3214.3,0.00467064]
[1768797928251,2.33763827,3215.7,3214.3,0.00467064]
[1768797928656,2.33763827,3215.5,3214.3,0.00467064]
[1768797930360,2.33763827,3215.3,3214.3,0.00467064]
[1768797933060,2.33763827,3215.1,3214.3,0.00467064]
[1768797933759,2.33763827,3215.1,3213.6,1.761]
[1768797934767,2.33763827,3215.1,3213.3,0.00298295]
[1768797937657,2.33763827,3214.6,3213.3,0.00298295]
[1768797937857,2.33763827,3214.4,3213.3,0.00298295]
[1768797939864,0.00467064,3214.2,3213.3,0.00298295]
[1768797942270,2.53450714,3214.2,3213.3,0.00298295]
[1768797943864,2.53450714,3214.2,3212.5,1.76]
[1768797944860,2.53450714,3214.2,3213.1,0.10394607]
[1768797947862,0.00467064,3214.2,3213.1,0.10394607]
[1768797952669,0.00467064,3214.2,3213.1,2.51096892]
[1768797953070,0.00467064,3214.2,3213.1,0.10394607]
[1768797956264,2.64070044,3214.2,3213.1,0.10394607]
[1768797956672,0.00467064,3214.2,3213.1,0.10394607]
[1768797958968,0.00467064,3214.2,3213.1,1.65419175]
[1768797961074,0.00467064,3214.2,3213.1,0.10394607]
[1768797962571,0.00467064,3214.2,3213.1,1.65419175]
[1768797966873,0.00467064,3214.2,3213.1,4.0612146]
[1768797967072,0.00467064,3214.2,3213.1,1.65419175]
[1768797967969,0.00467064,3214.2,3213.1,0.10394607]
[1768797974580,0.00467064,3214.2,3213.1,2.51096892]
[1768797974787,0.00467064,3214.2,3213.2,3.95726853]
[1768797977877,0.00467064,3214.2,3213.2,2.40702285]
[1768797984586,0.00467064,3214.2,3213.4,1.55024568]
[1768797986980,0.00467064,3214.2,3213.2,2.40702285]
[1768797987181,0.00467064,3214.2,3213.3,1.55024568]
[1768797992892,0.00467064,3214.2,3213.3,2.61846236]
[1768797993090,0.00467064,3214.2,3213.3,4.16870804]
[1768797997896,0.00467064,3214.2,3213.3,2.61846236]
[1768798002400,0.00467064,3214.2,3213.5,1.55024568]
[1768798002601,1.11540294,3215.0,3213.8,1.55024568]
[1768798002799,0.97510615,3214.9,3213.8,1.55024568]
[1768798003003,1.55024568,3215.2,3213.9,1.55024568]
[1768798003204,0.97456658,3215.1,3213.9,1.55024568]
[1768798003499,0.97456658,3215.0,3213.9,1.55024568]
[1768798003695,0.97456658,3214.9,3213.9,1.55024568]
[1768798003896,1.55024568,3215.2,3213.9,1.55024568]
[1768798004104,0.97456894,3215.1,3213.9,1.55024568]
[1768798004402,0.97456894,3215.0,3213.9,1.55024568]
[1768798004593,4.202515,3215.3,3213.9,1.55024568]
[1768798004795,0.97427311,3215.2,3213.9,1.55024568]
[1768798004994,0.97427311,3215.1,3213.9,1.55024568]
[1768798005189,0.97427311,3215.0,3213.9,1.55024568]
[1768798005393,1.55024568,3215.2,3213.9,1.55024568]
[1768798005600,0.97405713,3215.1,3213.9,1.55024568]
[1768798005796,0.97405713,3215.0,3213.9,1.55024568]
[1768798006002,1.55024568,3215.2,3213.9,1.55024568]
[1768798006202,0.97388576,3215.1,3213.9,1.55024568]
[1768798006503,0.97388576,3215.0,3213.9,1.55024568]
[1768798006696,1.55024568,3215.2,3213.9,1.55024568]
[1768798006897,0.97387225,3215.1,3213.9,1.55024568]
[1768798007094,0.97387225,3215.0,3213.9,1.55024568]
[1768798007290,2.65226932,3215.3,3213.9,1.55024568]
[1768798007496,0.97372015,3215.2,3213.9,1.55024568]
[1768798007693,4.202515,3215.3,3213.9,1.55024568]
[1768798009105,2.65226932,3215.2,3213.4,0.00467064]
[1768798009303,0.9651742,3215.1,3213.8,1.55024568]
[1768798009508,2.65226932,3215.3,3214.0,1.55024568]
[1768798009814,1.55024568,3214.9,3213.7,2.5831512]
[1768798010398,1.55024568,3214.9,3213.4,0.00467064]
[1768798010606,1.55024568,3214.7,3213.4,0.00467064]
[1768798011206,1.55024568,3214.5,3213.4,0.00467064]
[1768798011411,1.55024568,3214.3,3213.4,0.00467064]
[1768798012908,1.55024568,3214.1,3213.4,0.00467064]
[1768798013300,2.65226932,3214.5,3213.4,0.00467064]
[1768798013502,1.55024568,3214.2,3213.4,0.00467064]
[1768798019016,2.65226932,3214.5,3213.4,0.00467064]
[1768798030612,2.60205514,3214.4,3213.4,0.00467064]
[1768798032911,2.60205514,3214.4,3213.1,0.10394607]
[1768798034622,0.96481404,3214.3,3213.1,0.10394607]
[1768798034827,2.60205514,3214.0,3212.4,0.15573]
[1768798035015,2.60205514,3214.0,3212.0,2.53930139]
[1768798035920,2.60205514,3213.8,3212.0,2.54221681]
[1768798042731,2.60205514,3213.8,3212.2,2.4538354]
[1768798067337,2.60205514,3213.8,3212.0,0.15866542]
[1768798067536,1.55051129,3214.1,3212.0,0.15866542]
[1768798067537,2.41383112,3213.6,3212.0,0.15866542]
[1768798067736,2.41638576,3213.6,3212.0,0.15866542]
[1768798071447,2.41383112,3215.9,3213.5,1.55051129]
[1768798071745,2.41383112,3215.7,3213.9,1.55051129]
[1768798072040,2.41383112,3215.7,3213.7,1.55051129]
[1768798072341,2.41741656,3215.7,3213.7,1.55051129]
[1768798075943,2.41741656,3215.7,3213.4,0.15568]
[1768798076139,2.41741656,3215.7,3213.7,1.55051129]
[1768798077939,2.41741656,3215.7,3213.8,4.871]
[1768798080839,2.41741656,3215.7,3214.3,1.54908244]
[1768798081039,2.41741656,3215.7,3214.3,1.55269483]
[1768798081244,2.41741656,3215.7,3214.5,1.54908244]
[1768798081632,2.41741656,3215.7,3215.0,1.54908244]
[1768798082745,2.41741656,3215.7,3215.2,1.54908244]
[1768798082933,2.41741656,3215.7,3215.1,1.54908244]
[1768798083541,2.41741656,3215.7,3214.3,0.00361239]
[1768798083743,2.41741656,3215.7,3215.0,1.54908244]
[1768798085142,2.41741656,3215.7,3214.8,1.54908244]
[1768798087744,2.41741656,3215.7,3215.0,1.54908244]
[1768798091854,0.00358544,3215.7,3215.0,1.54908244]
[1768798092648,0.00358544,3215.7,3215.2,1.54908244]
[1768798092853,0.00358544,3215.7,3214.6,1.759]
[1768798093047,0.00358544,3215.7,3215.2,1.54908244]
[1768798093247,2.7247199,3215.7,3215.2,1.54908244]
[1768798093953,2.7247199,3215.7,3215.1,1.54908244]
[1768798094853,0.00358544,3215.7,3215.1,1.54908244]
[1768798096549,0.00358544,3215.7,3215.3,1.54908244]
[1768798097362,2.72113446,3216.1,3215.5,1.54908244]
[1768798097752,1.54908244,3217.0,3215.7,1.54908244]
[1768798098151,1.55175386,3217.0,3215.7,1.54908244]
[1768798098351,0.00267142,3217.0,3215.9,1.54908244]
[1768798099562,0.00267142,3217.0,3215.7,1.54908244]
[1768798099865,2.72113446,3216.9,3215.7,1.54908244]
[1768798102355,1.54908244,3216.7,3214.7,3.90638215]
[1768798102548,2.85756237,3215.4,3214.3,0.00361239]
[1768798104163,2.85756237,3216.3,3215.2,1.54908244]
[1768798104361,2.85756237,3216.3,3215.0,1.54908244]
[1768798105561,2.85756237,3216.2,3215.0,1.54908244]
[1768798105762,4.40664481,3216.1,3214.8,1.54908244]
[1768798106062,2.85756237,3216.0,3214.8,1.54908244]
[1768798107858,2.85756237,3216.0,3214.3,3.104205]
[1768798108063,2.85756237,3216.0,3214.8,1.54908244]
[1768798111870,2.85756237,3216.0,3214.3,0.00361239]
[1768798112070,1.54908244,3215.9,3214.6,1.54908244]
[1768798112269,2.85756237,3215.8,3214.6,1.54908244]
[1768798112873,2.85756237,3215.8,3214.5,1.758]
[1768798113072,0.00466316,3215.5,3214.5,3.30708244]
[1768798117671,0.00466316,3215.5,3214.8,1.54908244]
[1768798117869,0.00466316,3215.5,3214.5,1.758]
[1768798118174,0.00466316,3215.5,3214.7,1.54908244]
[1768798122886,0.00466316,3215.5,3214.3,0.00361239]
[1768798123085,0.00466316,3215.5,3214.6,1.54908244]
[1768798125479,0.00466316,3215.5,3214.5,1.54908244]
[1768798130389,0.00466316,3215.5,3214.6,1.767]
[1768798130591,0.00466316,3215.5,3214.6,3.31608244]
[1768798132184,3.30331366,3215.9,3214.6,3.31608244]
[1768798132494,3.30331366,3215.9,3214.7,0.00466316]
[1768798138104,3.30331366,3215.9,3214.7,1.5537456]
[1768798139303,3.30331366,3215.9,3214.7,0.00466316]
[1768798139503,3.30331366,3215.9,3214.7,1.5537456]
[1768798140905,3.30331366,3215.9,3214.7,0.00466316]
[1768798144512,3.32399425,3215.7,3214.7,0.00466316]
[1768798145919,3.32399425,3215.7,3214.3,0.00361239]
[1768798178236,3.36588745,3216.1,3214.6,1.54864309]
[1768798178928,0.00466316,3215.7,3214.4,3.90638215]
[1768798179435,3.40979783,3215.7,3214.4,3.90638215]
[1768798183036,3.40979783,3215.7,3214.5,1.775]
[1768798189735,3.40979783,3215.7,3214.5,5.68138215]
[1768798191736,0.00466316,3215.7,3214.6,3.90638215]
[1768798192540,3.58865226,3215.7,3214.4,3.90638215]
[1768798192740,3.58865226,3215.7,3214.5,1.779]
[1768798198449,3.58865226,3215.7,3214.6,1.781]
[1768798200858,3.58865226,3215.7,3214.7,1.54862218]
[1768798201461,3.58865226,3215.7,3214.9,1.54862218]
[1768798202463,3.58865226,3215.7,3214.7,1.54862218]
[1768798202867,3.58865226,3215.7,3214.6,5.68738215]
[1768798203067,3.58865226,3215.7,3214.8,1.54862218]
[1768798203765,0.00466316,3215.7,3214.8,1.54862218]
[1768798204769,0.00466316,3215.7,3215.0,1.54862218]
[1768798207666,3.5839891,3216.1,3215.0,1.54862218]
[1768798207870,3.5839891,3216.1,3214.7,3.90638215]
[1768798208169,3.5839891,3216.1,3215.1,1.54862218]
[1768798209469,3.5839891,3216.1,3215.3,1.54862218]
[1768798209773,3.5839891,3216.1,3215.3,1.785]
[1768798211572,3.5839891,3216.1,3215.3,3.33362218]
[1768798212979,3.5839891,3216.1,3215.3,1.785]
[1768798215369,3.5839891,3216.1,3215.3,3.33362218]
[1768798215572,3.5839891,3216.7,3215.5,1.54862218]
[1768798217974,3.5839891,3216.7,3215.3,1.785]
[1768798218177,3.5839891,3216.7,3215.3,3.33362218]
[1768798218776,6.35967142,3217.0,3215.3,3.33362218]
[1768798218777,3.5839891,3216.5,3215.3,3.33362218]
[1768798222580,3.5839891,3216.5,3215.3,1.785]
[1768798222780,3.50575081,3216.4,3215.3,1.785]
[1768798226775,3.50575081,3216.4,3215.3,3.33362218]
[1768798227877,3.50575081,3216.4,3215.3,1.785]
[1768798228077,3.50575081,3216.4,3215.3,3.33362218]
[1768798241801,3.50575081,3216.4,3215.3,1.785]
[1768798244298,3.50575081,3216.4,3215.4,1.792]
[1768798250500,5.05437299,3216.4,3215.4,1.792]
[1768798250689,3.59861577,3216.3,3215.4,1.792]
[1768798254405,3.39189605,3216.2,3215.4,1.795]
[1768798254797,3.39189605,3216.2,3215.0,0.00466316]
[1768798254995,3.39189605,3216.2,3215.1,1.795]
[1768798256305,3.39189605,3216.2,3215.2,1.795]
[1768798257906,3.39189605,3216.2,3215.0,0.00466316]
[1768798258096,3.39189605,3216.2,3215.1,1.795]
[1768798258293,3.39189605,3216.0,3215.1,1.795]
[1768798260102,3.39189605,3216.0,3215.1,1.796]
[1768798262205,4.94051823,3215.9,3215.0,0.00466316]
[1768798262516,3.39189605,3215.8,3215.0,1.80166316]
[1768798263306,3.39189605,3215.8,3215.0,0.00466316]
[1768798263507,3.39189605,3215.8,3215.0,1.80166316]
[1768798264811,3.39189605,3215.8,3215.0,0.00466316]
[1768798285934,3.39189605,3215.8,3214.6,1.797]
[1768798301040,40.8,3216.9,3214.7,3.31803965]
[1768798301041,1.11961908,3216.9,3214.7,3.31803965]
[1768798301246,3.54354108,3218.0,3216.4,1.54864423]
[1768798301540,2.63396412,3218.0,3216.5,0.45404924]
[1768798301745,2.63396412,3218.0,3216.6,1.75404924]
[1768798301942,2.63396412,3218.0,3216.7,0.45404924]
[1768798302141,2.63745542,3218.0,3215.6,0.15557]
[1768798302347,2.63745542,3218.0,3216.0,1.54864423]
[1768798303346,2.63745542,3218.0,3216.0,1.55135866]
[1768798305351,2.63745542,3218.0,3216.0,0.00271443]
[1768798305957,2.63745542,3218.0,3216.2,1.54864423]
[1768798310047,2.63745542,3218.0,3216.0,0.00271443]
[1768798310444,2.63745542,3218.0,3216.0,1.80571443]
[1768798310852,3.54354108,3217.7,3216.0,0.00271443]
[1768798311845,0.0034913,3218.0,3216.0,1.32575913]
[1768798312155,3.54703238,3218.0,3216.7,1.54864423]
[1768798312342,3.54703238,3218.0,3216.4,0.15553]
[1768798312759,3.54703238,3218.0,3216.3,1.54864423]
[1768798312947,3.54703238,3218.0,3216.0,0.00271443]
[1768798318061,3.54703238,3218.0,3216.2,1.54864423]
[1768798320959,3.54703238,3218.0,3216.0,0.00271443]
[1768798322972,3.09195798,3217.7,3216.4,1.54712022]
[1768798327877,3.09195798,3217.7,3216.0,1.54983465]
[1768798328180,3.09195798,3217.7,3216.6,1.54712022]
[1768798328982,3.09195798,3217.7,3217.0,1.54712022]
[1768798331274,0.0034913,3218.0,3217.0,1.54712022]
[1768798331275,3.09544928,3218.0,3217.5,1.54712022]
[1768798331686,3.09544928,3218.0,3217.3,1.54712022]
[1768798332380,3.09544928,3218.0,3217.1,1.54712022]
[1768798332884,3.09544928,3218.0,3216.4,0.15553]
[1768798333083,3.09544928,3218.0,3217.3,1.54712022]
[1768798333783,3.09544928,3218.0,3217.4,1.54712022]
[1768798333980,3.09544928,3218.0,3217.6,1.54712022]
[1768798334386,3.09544928,3218.0,3217.1,1.54712022]
[1768798335481,3.09544928,3218.0,3216.4,0.15553]
[1768798335687,3.09544928,3218.0,3217.1,1.54712022]
[1768798337495,3.09544928,3218.0,3217.3,1.54712022]
[1768798338092,0.1554,3219.1,3216.5,4.91]
[1768798338093,1.54712022,3219.0,3217.6,1.54712022]
[1768798338388,1.54712022,3218.8,3216.6,3.08628779]
[1768798338684,1.54712022,3218.6,3217.3,1.54712022]
[1768798339094,1.54712022,3218.4,3217.0,1.54712022]
[1768798339287,1.55024551,3218.6,3216.6,3.08628779]
[1768798339485,1.55024551,3218.6,3217.2,1.54712022]
[1768798340088,3.09195798,3218.5,3217.4,1.54712022]
[1768798341298,3.09195798,3218.5,3217.2,1.54712022]
[1768798342984,3.49927284,3218.3,3216.9,1.54712022]
[1768798343488,3.49927284,3218.3,3216.6,1.801]
[1768798343690,3.49927284,3217.8,3216.5,1.54712022]
[1768798343898,3.49927284,3217.5,3216.1,1.54712022]
[1768798344099,3.49927284,3217.5,3216.3,1.54712022]
[1768798349594,3.49927284,3217.5,3216.0,0.00271443]
[1768798349799,3.49927284,3217.5,3216.2,1.54712022]
[1768798350508,1.54712022,3217.6,3216.0,0.00271443]
[1768798350509,3.49927284,3217.2,3216.0,0.00271443]
[1768798351007,3.49927284,3217.2,3216.1,1.54712022]
[1768798352606,3.49927284,3217.2,3216.3,1.54712022]
[1768798353509,3.49927284,3216.9,3216.0,0.00271443]
[1768798357610,5.04639306,3216.9,3216.0,0.00271443]
[1768798357812,3.49927284,3216.8,3216.0,0.00271443]
[1768798358914,3.49927284,3216.8,3215.5,1.54712022]
[1768798359227,1.54712022,3218.0,3215.3,1.54712022]
[1768798359228,3.47558681,3216.6,3215.3,1.54712022]
[1768798359409,3.47558681,3216.4,3215.3,1.54712022]
[1768798359912,3.47558681,3216.4,3215.3,1.54988601]
[1768798361417,3.47558681,3216.4,3215.3,0.00276579]
[1768798361817,3.47558681,3216.4,3215.4,1.54712022]
[1768798362724,0.1555,3217.2,3216.0,1.54712022]
[1768798362725,3.47558681,3217.2,3216.0,1.54712022]
[1768798362923,3.47558681,3217.2,3215.8,1.54712022]
[1768798363314,3.47558681,3217.0,3215.8,1.54712022]
[1768798367617,3.47558681,3217.0,3216.0,1.54712022]
[1768798367812,3.47558681,3217.0,3216.2,1.54712022]
[1768798368018,3.47558681,3217.4,3216.3,1.54712022]
[1768798368226,3.47558681,3217.4,3216.1,1.54712022]
[1768798368424,3.47558681,3217.3,3216.1,1.54712022]
[1768798372824,3.47558681,3217.3,3215.6,3.90638215]
[1768798373026,3.47558681,3217.3,3216.1,1.54712022]
[1768798374941,3.47558681,3217.3,3215.6,3.90638215]
[1768798375247,3.47558681,3217.3,3216.1,1.54712022]
[1768798376440,3.47558681,3217.3,3216.3,1.54712022]
[1768798377852,3.47558681,3217.3,3215.7,3.90638215]
[1768798378052,3.47558681,3217.3,3216.3,1.54712022]
[1768798379054,3.47558681,3217.3,3216.1,1.54712022]
[1768798380353,3.47558681,3217.3,3215.7,3.90638215]
[1768798380544,3.47558681,3217.3,3216.1,1.54712022]
[1768798381053,3.47558681,3217.3,3215.7,3.90638215]
[1768798381253,3.47558681,3217.3,3216.0,1.54712022]
[1768798382057,3.47558681,3217.3,3215.7,3.90638215]
[1768798382250,3.34222786,3217.1,3215.6,3.90638215]
[1768798382456,3.34222786,3216.7,3215.6,3.90638215]
[1768798382653,3.34222786,3216.7,3215.4,1.54712022]
[1768798382851,3.34222786,3216.7,3215.6,1.54712022]
[1768798384961,3.34222786,3216.7,3215.3,0.00276579]
[1768798419293,3.42461618,3216.5,3215.0,3.90638215]